[Event "Pervenstvo PFO 2023_Y19_Rapid"]
[Site "Samara region, Russia"]
[Date "2023.11.11"]
[Round "1.5"]
[White "Galyaviev, Samat"]
[Black "Sengatullin, Aidar"]
[Result "1-0"]
[TimeControl "10:5"]
[WhiteFideId "44168470"]
[BlackFideId "34189138"]
[WhiteElo "2030"]
[BlackElo "1376"]

1. d4 {[%clk 00:10:09]} {[%emt 00:19:35]} d5 {[%clk 00:10:09]} {[%emt
00:00:01]} 2. Nf3 {[%clk 00:10:13]} Nf6 {[%clk 00:10:12]} {[%emt 00:00:02]} 3.
Bf4 {[%clk 00:10:17]} {[%emt 00:00:01]} e6 {[%clk 00:10:16]} 4. e3 {[%clk
00:10:21]} {[%emt 00:00:01]} Bd6 {[%clk 00:10:20]} 5. Ne5 {[%clk 00:10:25]}
{[%emt 00:00:02]} Nbd7 {[%clk 00:10:16]} {[%emt 00:00:08]} 6. Nd2 {[%clk
00:10:29]} {[%emt 00:00:01]} c5 {[%clk 00:10:18]} {[%emt 00:00:03]} 7. Nxf7
{[%clk 00:10:26]} {[%emt 00:00:09]} Kxf7 {[%clk 00:10:19]} {[%emt 00:00:04]} 8.
Bxd6 {[%clk 00:10:30]} {[%emt 00:00:01]} Qb6 {[%clk 00:10:12]} {[%emt
00:00:12]} 9. dxc5 {[%clk 00:10:23]} {[%emt 00:00:12]} Qxb2 {[%clk 00:09:51]}
{[%emt 00:00:26]} 10. Nb3 {[%clk 00:09:20]} {[%emt 00:01:07]} Ne4 {[%clk
00:09:38]} {[%emt 00:00:19]} 11. Qd4 {[%clk 00:08:19]} {[%emt 00:01:06]} Qxc2
{[%clk 00:09:20]} {[%emt 00:00:23]} 12. Be2 {[%clk 00:08:22]} Ndf6 {[%clk
00:06:33]} {[%emt 00:02:52]} 13. Bg3 {[%clk 00:07:00]} {[%emt 00:01:27]} Bd7
{[%clk 00:05:53]} {[%emt 00:00:45]} 14. Bd3 {[%clk 00:06:46]} {[%emt 00:00:19]}
Qc3+ {[%clk 00:05:37]} {[%emt 00:00:22]} 15. Qxc3 {[%clk 00:06:50]} {[%emt
00:00:01]} Nxc3 {[%clk 00:05:40]} {[%emt 00:00:01]} 16. f3 {[%clk 00:06:54]}
{[%emt 00:00:02]} Rac8 {[%clk 00:05:35]} {[%emt 00:00:10]} 17. Kd2 {[%clk
00:06:52]} {[%emt 00:00:07]} Na4 {[%clk 00:05:36]} {[%emt 00:00:03]} 18. Rac1
{[%clk 00:06:47]} {[%emt 00:00:09]} b6 {[%clk 00:05:22]} {[%emt 00:00:20]} 19.
Ba6 {[%clk 00:06:33]} {[%emt 00:00:19]} bxc5 {[%clk 00:04:06]} {[%emt
00:01:20]} 20. Bxc8 Rxc8 {[%clk 00:04:10]} 21. Be5 {[%clk 00:06:13]} {[%emt
00:00:26]} c4 {[%clk 00:04:04]} {[%emt 00:00:12]} 22. Na1 {[%clk 00:05:24]}
{[%emt 00:00:53]} Bb5 {[%clk 00:03:45]} {[%emt 00:00:24]} 23. Bc3 {[%clk
00:05:18]} {[%emt 00:00:12]} Nc5 {[%clk 00:03:33]} {[%emt 00:00:18]} 24. Rb1
{[%clk 00:05:22]} Nce4+ {[%clk 00:02:50]} {[%emt 00:00:48]} 25. fxe4 {[%clk
00:04:29]} {[%emt 00:00:58]} Nxe4+ {[%clk 00:02:54]} {[%emt 00:00:01]} 26. Kc2
{[%clk 00:04:06]} {[%emt 00:00:28]} Ba4+ {[%clk 00:02:58]} 27. Kb2 {[%clk
00:04:11]} Rb8+ {[%clk 00:03:02]} 28. Ka3 {[%clk 00:04:15]} {[%emt 00:00:01]}
Rxb1 {[%clk 00:02:40]} {[%emt 00:00:27]} 29. Rxb1 {[%clk 00:04:19]} {[%emt
00:00:01]} Nxc3 {[%clk 00:02:39]} {[%emt 00:00:06]} 30. Rc1 {[%clk 00:03:58]}
{[%emt 00:00:25]} Nd1 {[%clk 00:02:19]} {[%emt 00:00:25]} 31. Kxa4 {[%clk
00:03:58]} {[%emt 00:00:05]} Nxe3 {[%clk 00:02:22]} {[%emt 00:00:02]} 32. Nc2
{[%clk 00:03:45]} {[%emt 00:00:17]} Nxg2 {[%clk 00:02:25]} {[%emt 00:00:03]} 33.
Rf1+ {[%clk 00:03:47]} {[%emt 00:00:03]} Ke7 {[%clk 00:02:24]} {[%emt
00:00:06]} 34. Rg1 {[%clk 00:03:42]} {[%emt 00:00:10]} Nf4 {[%clk 00:02:28]}
{[%emt 00:00:02]} 35. Rxg7+ {[%clk 00:03:45]} {[%emt 00:00:02]} Kd6 {[%clk
00:02:31]} {[%emt 00:00:01]} 36. Rxh7 {[%clk 00:03:44]} {[%emt 00:00:06]} e5
{[%clk 00:02:24]} {[%emt 00:00:13]} 37. Kb5 {[%clk 00:03:21]} {[%emt 00:00:28]}
c3 {[%clk 00:02:16]} {[%emt 00:00:13]} 38. Rh6+ {[%clk 00:03:21]} {[%emt
00:00:05]} Ne6 {[%clk 00:02:05]} {[%emt 00:00:16]} 39. Kb4 {[%clk 00:01:57]}
{[%emt 00:01:28]} d4 {[%clk 00:02:08]} {[%emt 00:00:02]} 40. Kc4 {[%clk
00:02:01]} Ke7 {[%clk 00:02:05]} {[%emt 00:00:08]} 41. Rh3 {[%clk 00:01:43]}
{[%emt 00:00:23]} Ng5 {[%clk 00:02:02]} {[%emt 00:00:08]} 42. Rg3 {[%clk
00:01:05]} {[%emt 00:00:43]} Kf6 {[%clk 00:02:04]} {[%emt 00:00:04]} 43. Kd3
{[%clk 00:01:05]} {[%emt 00:00:04]} Ne6 {[%clk 00:01:58]} {[%emt 00:00:11]} 44.
Rf3+ {[%clk 00:01:03]} {[%emt 00:00:07]} Kg6 {[%clk 00:01:50]} {[%emt
00:00:13]} 45. Kc4 {[%clk 00:01:02]} {[%emt 00:00:05]} e4 {[%clk 00:01:44]}
{[%emt 00:00:12]} 46. Rg3+ {[%clk 00:01:03]} {[%emt 00:00:04]} Kf5 {[%clk
00:01:43]} {[%emt 00:00:05]} 47. Nxd4+ {[%clk 00:01:05]} {[%emt 00:00:03]} Nxd4
{[%clk 00:01:47]} {[%emt 00:00:01]} 48. Kxd4 {[%clk 00:01:09]} 1-0

[Event "Pervenstvo PFO 2023_Y19_Rapid"]
[Site "Samara region, Russia"]
[Date "2023.11.11"]
[Round "1.6"]
[White "Yudin, Danil"]
[Black "Evtukhov, Lev"]
[Result "1/2-1/2"]
[TimeControl "10:5"]
[WhiteFideId "44171986"]
[BlackFideId "44173210"]
[WhiteElo "1786"]
[BlackElo "1923"]

1. d4 {[%clk 00:10:10]} {[%emt 00:03:39]} d5 {[%clk 00:10:09]} {[%emt
00:00:02]} 2. c4 {[%clk 00:10:13]} e6 {[%clk 00:10:13]} 3. Nc3 {[%clk
00:10:16]} {[%emt 00:00:04]} Be7 {[%clk 00:10:17]} 4. cxd5 {[%clk 00:10:10]}
{[%emt 00:00:12]} exd5 {[%clk 00:10:20]} {[%emt 00:00:01]} 5. Bf4 {[%clk
00:10:14]} c6 {[%clk 00:10:19]} {[%emt 00:00:06]} 6. e3 {[%clk 00:10:18]}
{[%emt 00:00:01]} Nf6 {[%clk 00:10:22]} {[%emt 00:00:02]} 7. Bd3 {[%clk
00:10:18]} {[%emt 00:00:04]} O-O {[%clk 00:10:17]} {[%emt 00:00:10]} 8. h3
{[%clk 00:10:20]} {[%emt 00:00:04]} Bd6 {[%clk 00:10:03]} {[%emt 00:00:19]} 9.
Bxd6 {[%clk 00:09:29]} {[%emt 00:00:57]} Qxd6 {[%clk 00:10:06]} 10. Nge2 {[%clk
00:09:22]} {[%emt 00:00:12]} Nbd7 {[%clk 00:09:53]} {[%emt 00:00:19]} 11. Ng3
{[%clk 00:09:13]} {[%emt 00:00:13]} Re8 {[%clk 00:08:50]} {[%emt 00:01:08]} 12.
Nf5 {[%clk 00:09:05]} {[%emt 00:00:14]} Qb4 {[%clk 00:08:52]} {[%emt 00:00:02]}
13. a3 {[%clk 00:08:42]} {[%emt 00:00:29]} Qf8 {[%clk 00:08:27]} {[%emt
00:00:30]} 14. O-O {[%clk 00:08:34]} {[%emt 00:00:12]} Ne4 {[%clk 00:08:01]}
{[%emt 00:00:31]} 15. Bxe4 {[%clk 00:08:29]} {[%emt 00:00:11]} dxe4 {[%clk
00:08:05]} {[%emt 00:00:01]} 16. d5 {[%clk 00:08:14]} {[%emt 00:00:21]} Nf6
{[%clk 00:07:42]} {[%emt 00:00:27]} 17. Ng3 {[%clk 00:08:16]} {[%emt 00:00:04]}
Rd8 {[%clk 00:07:38]} {[%emt 00:00:08]} 18. Qb3 {[%clk 00:07:49]} {[%emt
00:00:31]} cxd5 {[%clk 00:07:30]} {[%emt 00:00:14]} 19. Rfd1 {[%clk 00:07:53]}
Be6 {[%clk 00:07:26]} {[%emt 00:00:09]} 20. Qxb7 {[%clk 00:07:54]} {[%emt
00:00:04]} Rdb8 {[%clk 00:06:38]} {[%emt 00:00:53]} 21. Qa6 {[%clk 00:07:00]}
{[%emt 00:00:59]} Rxb2 {[%clk 00:05:21]} {[%emt 00:01:22]} 22. Nge2 {[%clk
00:06:54]} {[%emt 00:00:11]} Rb6 {[%clk 00:04:23]} {[%emt 00:01:03]} 23. Qa5
{[%clk 00:06:58]} Qc8 {[%clk 00:03:29]} {[%emt 00:01:00]} 24. Rac1 {[%clk
00:05:36]} {[%emt 00:01:27]} Qa6 {[%clk 00:03:14]} {[%emt 00:00:20]} 25. Qc5
{[%clk 00:03:55]} {[%emt 00:01:47]} Rc6 {[%clk 00:02:36]} {[%emt 00:00:42]} 26.
Qb4 {[%clk 00:02:53]} {[%emt 00:01:06]} Rc4 {[%clk 00:02:18]} {[%emt 00:00:24]}
27. Qb2 {[%clk 00:02:57]} Rac8 {[%clk 00:02:17]} {[%emt 00:00:05]} 28. Nf4
{[%clk 00:02:35]} {[%emt 00:00:28]} Qa5 {[%clk 00:02:04]} {[%emt 00:00:19]} 29.
Nfe2 {[%emt 00:00:52]} h6 {[%clk 00:01:59]} {[%emt 00:00:07]} 30. a4 {[%clk
00:01:39]} {[%emt 00:00:17]} Rb4 {[%clk 00:01:46]} {[%emt 00:00:17]} 31. Qa3
{[%clk 00:01:37]} {[%emt 00:00:03]} Rcc4 {[%clk 00:01:49]} {[%emt 00:00:06]} 32.
Nd4 {[%clk 00:01:16]} {[%emt 00:00:27]} a6 {[%clk 00:01:03]} {[%emt 00:00:51]}
33. Nb3 {[%clk 00:00:37]} {[%emt 00:00:44]} Qb6 {[%clk 00:00:45]} {[%emt
00:00:21]} 34. Nd4 {[%clk 00:00:25]} {[%emt 00:00:19]} Nd7 {[%clk 00:00:29]}
{[%emt 00:00:20]} 35. a5 {[%clk 00:00:18]} {[%emt 00:00:12]} Qb7 {[%clk
00:00:32]} {[%emt 00:00:01]} 36. Na2 {[%clk 00:00:08]} {[%emt 00:00:16]} Ra4
{[%clk 00:00:21]} {[%emt 00:00:16]} 37. Qe7 {[%clk 00:00:10]} {[%emt 00:00:03]}
Rxa2 {[%clk 00:00:19]} {[%emt 00:00:07]} 38. Nxe6 {[%clk 00:00:14]} {[%emt
00:00:01]} fxe6 {[%clk 00:00:23]} 39. Qxe6+ {[%clk 00:00:17]} {[%emt 00:00:02]}
Kh7 {[%clk 00:00:19]} {[%emt 00:00:09]} 40. Rxc4 {[%clk 00:00:22]} {[%emt
00:00:02]} dxc4 {[%clk 00:00:23]} 41. Rxd7 {[%clk 00:00:25]} {[%emt 00:00:01]}
Ra1+ {[%clk 00:00:24]} {[%emt 00:00:03]} 42. Kh2 {[%clk 00:00:29]} Qb8+ {[%clk
00:00:24]} {[%emt 00:00:05]} 43. Qd6 {[%clk 00:00:36]} {[%emt 00:01:24]} Qxd6+
{[%clk 00:01:23]} 44. Rxd6 {[%clk 00:00:40]} Rxa5 {[%clk 00:01:22]} {[%emt
00:00:07]} 45. Rc6 {[%clk 00:00:45]} Ra4 {[%clk 00:01:25]} {[%emt 00:00:02]} 46.
Kg3 {[%clk 00:00:48]} {[%emt 00:00:01]} a5 {[%clk 00:01:11]} {[%emt 00:00:19]}
47. Kf4 {[%clk 00:00:52]} Ra2 {[%clk 00:01:00]} {[%emt 00:00:17]} 48. Kxe4
{[%clk 00:00:17]} {[%emt 00:00:41]} Rxf2 {[%clk 00:01:01]} {[%emt 00:00:03]} 49.
g4 {[%clk 00:00:20]} {[%emt 00:00:02]} 1/2-1/2

[Event "Pervenstvo PFO 2023_Y19_Rapid"]
[Site "Samara region, Russia"]
[Date "2023.11.11"]
[Round "1.8"]
[White "Kurulev, Egor"]
[Black "Kunakkuzin, Rinat"]
[Result "0-1"]
[TimeControl "10:5"]
[WhiteFideId "34187097"]
[BlackFideId "54126584"]
[WhiteElo "1332"]
[BlackElo "1925"]

1. e4 {[%emt 00:20:22]} c6 {[%emt 00:00:03]} 2. Nf3 d5 {[%emt 00:00:01]} 3. Nc3
{[%emt 00:00:02]} dxe4 4. Nxe4 {[%emt 00:00:01]} Nf6 5. Nxf6+ {[%emt 00:00:02]}
exf6 {[%emt 00:00:02]} 6. d4 {[%emt 00:00:02]} Bd6 {[%emt 00:00:02]} 7. Bd3
{[%emt 00:00:04]} O-O {[%emt 00:00:02]} 8. O-O {[%emt 00:00:03]} Bg4 {[%emt
00:00:07]} 9. h3 {[%emt 00:00:06]} Bh5 10. Re1 {[%emt 00:00:08]} Bg6 {[%emt
00:00:09]} 11. Bxg6 {[%emt 00:00:15]} hxg6 {[%emt 00:00:01]} 12. Qd3 {[%emt
00:00:07]} Na6 {[%emt 00:00:04]} 13. c3 {[%emt 00:00:11]} Nc7 {[%emt 00:00:03]}
14. Nd2 {[%emt 00:01:11]} c5 {[%emt 00:00:10]} 15. Ne4 {[%emt 00:00:39]} f5
{[%emt 00:00:21]} 16. Nxd6 {[%emt 00:00:57]} Qxd6 {[%emt 00:00:02]} 17. Qc4
{[%emt 00:01:00]} cxd4 {[%emt 00:00:09]} 18. Qxd4 {[%emt 00:00:08]} Qxd4 {[%emt
00:00:22]} 19. cxd4 {[%emt 00:00:02]} Rfe8 {[%emt 00:00:01]} 20. Kf1 {[%emt
00:00:52]} Re4 {[%emt 00:00:21]} 21. Rxe4 {[%emt 00:00:28]} fxe4 {[%emt
00:00:02]} 22. Be3 {[%emt 00:00:03]} Nd5 {[%emt 00:00:16]} 23. Rc1 {[%emt
00:00:07]} Kf8 {[%emt 00:00:08]} 24. Rc5 {[%emt 00:00:19]} Rd8 {[%emt
00:00:01]} 25. Ke2 {[%emt 00:00:13]} Ke7 {[%emt 00:00:23]} 26. f3 {[%emt
00:00:20]} exf3+ {[%emt 00:00:12]} 27. Kxf3 {[%emt 00:00:17]} Ke6 {[%emt
00:00:08]} 28. Ke4 {[%emt 00:00:37]} f5+ {[%emt 00:01:08]} 29. Kd3 {[%emt
00:00:04]} Rd7 {[%emt 00:00:03]} 30. g3 {[%emt 00:00:36]} b6 {[%emt 00:00:29]}
31. Rc6+ {[%emt 00:00:21]} Kf7 32. a3 {[%emt 00:00:06]} Ne7 {[%emt 00:00:41]}
33. Rc2 {[%emt 00:00:23]} Nd5 {[%emt 00:00:27]} 34. Bg5 {[%emt 00:00:28]} Rc7
{[%emt 00:00:19]} 35. Re2 {[%emt 00:00:47]} Rd7 {[%emt 00:00:09]} 36. Rc2
{[%emt 00:00:15]} Nc7 {[%emt 00:00:04]} 37. Bf4 {[%emt 00:00:21]} Ne6 {[%emt
00:00:33]} 38. Be5 {[%emt 00:00:22]} g5 {[%emt 00:00:10]} 39. Rc6 {[%emt
00:00:21]} Nc5+ {[%emt 00:01:50]} 40. Kc4 {[%emt 00:00:29]} Ne4 {[%emt
00:00:10]} 41. Rc7 {[%emt 00:00:30]} Rxc7+ {[%emt 00:01:08]} 42. Bxc7 {[%emt
00:00:01]} Ke6 {[%emt 00:00:11]} 43. d5+ {[%emt 00:00:16]} Kd7 {[%emt
00:00:08]} 44. Be5 {[%emt 00:00:01]} Nd6+ {[%emt 00:01:13]} 45. Kd4 {[%emt
00:00:12]} g6 {[%emt 00:00:07]} 46. Bf6 {[%emt 00:00:07]} Nf7 {[%emt 00:00:43]}
47. h4 {[%emt 00:00:06]} gxh4 {[%emt 00:00:11]} 48. gxh4 Kd6 {[%emt 00:00:10]}
49. Bg7 {[%emt 00:00:01]} a6 {[%emt 00:00:10]} 50. Bf8+ {[%emt 00:00:02]} Kd7
51. Bb4 {[%emt 00:00:04]} Nd6 {[%emt 00:00:23]} 52. Bd2 {[%emt 00:00:02]} b5
{[%emt 00:00:18]} 53. Bc3 {[%emt 00:00:05]} Nc4 {[%emt 00:00:05]} 54. Kc5
{[%emt 00:00:11]} Kc7 {[%emt 00:00:08]} 55. a4 {[%emt 00:00:03]} f4 {[%emt
00:00:07]} 56. axb5 {[%emt 00:00:04]} f3 {[%emt 00:00:06]} 57. Bd4 {[%emt
00:00:08]} axb5 {[%emt 00:00:05]} 58. Kxb5 {[%emt 00:00:07]} Nd2 {[%emt
00:00:04]} 59. Be5+ {[%emt 00:00:08]} Kd7 {[%emt 00:00:03]} 60. Bd4 {[%emt
00:00:09]} 0-1

[Event "Pervenstvo PFO 2023_Y19_Rapid"]
[Site "Samara region, Russia"]
[Date "2023.11.11"]
[Round "1.9"]
[White "Babkov, Timofey"]
[Black "Pozdnyakov, Egor Dm."]
[Result "1-0"]
[TimeControl "10:5"]
[WhiteFideId "54135931"]
[BlackFideId "34416099"]
[WhiteElo "1855"]
[BlackElo "1262"]

1. e4 {[%clk 00:10:09]} c5 {[%clk 00:10:09]} {[%emt 00:00:02]} 2. Nf3 {[%clk
00:10:13]} g6 {[%clk 00:10:13]} 3. d4 {[%clk 00:10:17]} cxd4 {[%clk 00:10:17]}
{[%emt 00:00:02]} 4. Nxd4 {[%clk 00:10:22]} Nc6 {[%clk 00:10:21]} {[%emt
00:00:02]} 5. Nc3 {[%clk 00:10:25]} Bg7 {[%clk 00:10:25]} {[%emt 00:00:01]} 6.
Be3 {[%clk 00:10:30]} Nf6 {[%emt 00:00:10]} 7. Nxc6 {[%clk 00:10:21]} {[%emt
00:00:06]} bxc6 {[%clk 00:09:31]} {[%emt 00:01:02]} 8. e5 {[%clk 00:10:23]}
{[%emt 00:00:02]} Nd5 {[%clk 00:08:05]} {[%emt 00:01:32]} 9. Nxd5 {[%clk
00:10:20]} {[%emt 00:00:08]} cxd5 {[%clk 00:08:09]} 10. Qxd5 {[%clk 00:10:24]}
{[%emt 00:00:02]} Rb8 {[%clk 00:08:13]} 11. O-O-O {[%clk 00:10:23]} {[%emt
00:00:06]} O-O {[%clk 00:07:33]} {[%emt 00:00:44]} 12. Bxa7 {[%clk 00:10:02]}
{[%emt 00:00:26]} Rb7 {[%clk 00:06:51]} {[%emt 00:00:48]} 13. Bd4 {[%clk
00:09:51]} {[%emt 00:00:15]} d6 {[%clk 00:05:13]} {[%emt 00:01:43]} 14. exd6
{[%clk 00:09:42]} {[%emt 00:00:14]} Bxd4 {[%clk 00:05:11]} {[%emt 00:00:08]} 15.
Qxd4 {[%clk 00:08:52]} {[%emt 00:00:55]} exd6 {[%clk 00:05:00]} {[%emt
00:00:16]} 16. Bc4 {[%clk 00:08:17]} {[%emt 00:00:39]} Qa5 {[%clk 00:04:29]}
{[%emt 00:00:37]} 17. Qxd6 {[%clk 00:08:04]} {[%emt 00:00:18]} Bf5 {[%clk
00:04:05]} {[%emt 00:00:29]} 18. Qd2 {[%clk 00:04:44]} {[%emt 00:03:25]} Qa4
{[%clk 00:03:51]} {[%emt 00:00:20]} 19. Bd5 {[%clk 00:03:40]} {[%emt 00:01:09]}
Rb5 {[%clk 00:02:47]} {[%emt 00:01:09]} 20. Qe2 {[%clk 00:02:40]} {[%emt
00:01:04]} Rc8 {[%clk 00:02:04]} {[%emt 00:00:49]} 21. c3 {[%clk 00:02:15]}
{[%emt 00:00:29]} Rxc3+ {[%clk 00:01:46]} {[%emt 00:00:24]} 22. bxc3 {[%clk
00:02:20]} Rb1+ 23. Kd2 Rb2+ {[%clk 00:01:33]} {[%emt 00:00:21]} 24. Ke1 {[%clk
00:02:24]} {[%emt 00:00:03]} Rxe2+ {[%clk 00:01:35]} {[%emt 00:00:05]} 25. Kxe2
{[%clk 00:02:28]} {[%emt 00:00:02]} Qc2+ {[%clk 00:01:14]} {[%emt 00:00:25]} 26.
Rd2 {[%clk 00:02:18]} {[%emt 00:00:15]} Qxc3 {[%clk 00:01:17]} {[%emt
00:00:01]} 27. Re1 {[%clk 00:01:59]} {[%emt 00:00:24]} Qe5+ {[%clk 00:00:57]}
{[%emt 00:00:26]} 28. Kf1 {[%clk 00:02:01]} {[%emt 00:00:03]} Qxh2 {[%clk
00:00:58]} {[%emt 00:00:04]} 29. Re8+ {[%clk 00:01:32]} {[%emt 00:00:33]} Kg7
{[%clk 00:01:00]} {[%emt 00:00:03]} 30. Re7 {[%clk 00:01:36]} {[%emt 00:00:01]}
Bg4 {[%clk 00:00:45]} {[%emt 00:00:20]} 31. Rxf7+ {[%clk 00:01:20]} {[%emt
00:00:21]} Kh6 {[%clk 00:00:50]} 32. g3 {[%clk 00:01:08]} {[%emt 00:00:18]}
Bh3+ {[%clk 00:00:21]} {[%emt 00:00:33]} 33. Ke2 {[%clk 00:01:07]} {[%emt
00:00:06]} Qg1 {[%clk 00:00:24]} {[%emt 00:00:02]} 34. Rd4 {[%clk 00:00:54]}
{[%emt 00:00:18]} Bf1+ {[%clk 00:00:11]} {[%emt 00:00:18]} 35. Kd2 {[%clk
00:00:55]} {[%emt 00:00:03]} g5 {[%clk 00:00:09]} {[%emt 00:00:08]} 36. Bb3
{[%clk 00:00:50]} {[%emt 00:00:10]} Ba6 {[%clk 00:00:08]} {[%emt 00:00:06]} 37.
Rd6+ {[%clk 00:00:51]} {[%emt 00:00:03]} Kh5 {[%clk 00:00:12]} {[%emt
00:00:02]} 38. Bd1+ {[%clk 00:00:44]} {[%emt 00:00:12]} g4 {[%clk 00:00:17]} 39.
Rf5# {[%clk 00:00:48]} {[%emt 00:00:01]} 1-0

[Event "Pervenstvo PFO 2023_Y19_Rapid"]
[Site "Samara region, Russia"]
[Date "2023.11.11"]
[Round "1.10"]
[White "Musin, Ramazan"]
[Black "Sadykov, Ilgiz A."]
[Result "1/2-1/2"]
[TimeControl "10:5"]
[WhiteFideId "24209562"]
[BlackFideId "34286217"]
[WhiteElo "1318"]
[BlackElo "1675"]

1. d4 {[%clk 00:10:08]} {[%emt 00:00:02]} Nf6 {[%clk 00:10:08]} {[%emt
00:00:02]} 2. c4 {[%clk 00:10:11]} {[%emt 00:00:01]} e6 {[%clk 00:10:12]}
{[%emt 00:00:01]} 3. g3 {[%clk 00:10:15]} {[%emt 00:00:02]} Bb4+ {[%clk
00:10:12]} {[%emt 00:00:05]} 4. Bd2 {[%clk 00:10:19]} c5 {[%clk 00:10:16]}
{[%emt 00:00:02]} 5. Nf3 {[%clk 00:09:56]} {[%emt 00:00:27]} Nc6 {[%clk
00:10:17]} {[%emt 00:00:03]} 6. a3 {[%clk 00:09:52]} {[%emt 00:00:10]} Bxd2+
{[%clk 00:10:17]} {[%emt 00:00:04]} 7. Qxd2 {[%clk 00:09:56]} {[%emt 00:00:02]}
d6 {[%clk 00:09:59]} {[%emt 00:00:23]} 8. dxc5 {[%clk 00:09:23]} {[%emt
00:00:37]} dxc5 {[%clk 00:10:02]} {[%emt 00:00:02]} 9. Qxd8+ {[%clk 00:09:15]}
{[%emt 00:00:14]} Nxd8 {[%clk 00:10:04]} {[%emt 00:00:03]} 10. Nc3 {[%clk
00:09:18]} {[%emt 00:00:02]} O-O {[%clk 00:09:42]} {[%emt 00:00:27]} 11. Bg2
{[%clk 00:09:12]} {[%emt 00:00:11]} Nc6 {[%clk 00:09:40]} {[%emt 00:00:07]} 12.
O-O {[%clk 00:08:41]} {[%emt 00:00:36]} e5 {[%clk 00:09:40]} {[%emt 00:00:05]}
13. Na4 {[%clk 00:08:22]} {[%emt 00:00:23]} Be6 {[%clk 00:09:05]} {[%emt
00:00:40]} 14. b3 {[%clk 00:07:48]} {[%emt 00:00:39]} b6 {[%clk 00:08:57]}
{[%emt 00:00:14]} 15. Ng5 {[%clk 00:07:36]} {[%emt 00:00:17]} Bd7 {[%clk
00:09:00]} {[%emt 00:00:01]} 16. Rfd1 {[%clk 00:07:39]} {[%emt 00:00:02]} Rac8
{[%clk 00:08:56]} {[%emt 00:00:09]} 17. Ne4 {[%clk 00:07:36]} {[%emt 00:00:08]}
Nxe4 {[%clk 00:08:37]} {[%emt 00:00:25]} 18. Rxd7 {[%clk 00:06:24]} {[%emt
00:01:17]} Nf6 {[%clk 00:07:18]} {[%emt 00:01:24]} 19. Bxc6 {[%clk 00:06:26]}
{[%emt 00:00:03]} Rxc6 {[%clk 00:07:17]} {[%emt 00:00:06]} 20. Rxa7 {[%clk
00:05:17]} {[%emt 00:01:14]} Rd6 {[%clk 00:07:10]} {[%emt 00:00:11]} 21. Rb7
{[%clk 00:04:02]} {[%emt 00:01:21]} Nd7 {[%clk 00:06:40]} {[%emt 00:00:35]} 22.
Nc3 {[%clk 00:04:05]} {[%emt 00:00:02]} 1/2-1/2

[ePGN "0.1;DGT LiveChess/2.2.5"]